bitfinex/quotes_ETHUSD_20241004
["timestamp","ask_amount","ask_price","bid_price","bid_amount"]
[1728008234483,3.0,2377.3,2376.8,5.01803]
[1728008234777,7.20649,2377.3,2376.8,5.01803]
[1728008234982,3.0,2377.3,2376.8,5.01803]
[1728008235180,3.0,2377.3,2376.8,9.22525]
[1728008235380,3.0,2377.3,2376.8,5.01802]
[1728008236584,7.20651,2377.3,2376.8,5.01802]
[1728008236753,7.20651,2377.3,2376.8,0.8108]
[1728008237466,3.0,2377.3,2376.8,5.01812]
[1728008237778,3.0,2377.4,2376.9,4.20704]
[1728008238079,4.206,2377.6,2376.8,5.01802]
[1728008238379,3.0,2377.5,2377.0,4.20687]
[1728008238584,3.0,2377.5,2377.0,5.13777426]
[1728008238883,3.0,2377.7,2377.0,0.93090426]
[1728008239041,3.0,2377.7,2376.8,5.01804]
[1728008239042,4.20638,2377.4,2376.8,5.01804]
[1728008239391,4.20638,2377.4,2376.8,4.20729]
[1728008239561,4.20638,2377.4,2376.9,4.7119942]
[1728008239881,3.0,2377.5,2376.9,4.627859]
[1728008240078,4.20632,2377.4,2376.9,0.420729]
[1728008240338,8.41276,2377.4,2376.8,4.20729]
[1728008240511,4.20632,2377.4,2376.8,4.20729]
[1728008240898,4.20648,2377.3,2376.6,9.18977]
[1728008241093,4.20663,2377.2,2376.6,4.98214]
[1728008241439,4.20663,2377.2,2376.6,6.39065466]
[1728008241993,4.20663,2377.2,2376.6,10.59823466]
[1728008242429,4.20663,2377.2,2376.7,4.2075]
[1728008242798,4.20663,2377.2,2376.6,6.39065466]
[1728008242799,4.20632,2377.4,2376.6,6.39065466]
[1728008243020,8.4127,2377.4,2376.8,4.20731]
[1728008243192,4.20632,2377.4,2376.8,4.20731]
[1728008243393,4.20674,2377.2,2376.6,6.39065466]
[1728008243622,4.20658,2377.3,2376.8,4.20732]
[1728008244024,4.2062,2377.5,2376.9,4.29126255]
[1728008244341,4.20645,2377.4,2376.8,5.66562952]
[1728008246818,4.20687,2377.1,2376.6,4.98218]
[1728008247695,7.31,2377.8,2376.6,0.7746]
[1728008247696,4.207,2377.0,2376.6,0.7746]
[1728008247817,3.0,2377.2,2376.8,4.20733]
[1728008248162,7.20638,2377.4,2376.8,4.20733]
[1728008248346,7.20638,2377.4,2376.8,5.53321183]
[1728008248664,11.41277,2377.4,2376.8,5.53321183]
[1728008248813,11.41278,2377.4,2376.8,5.53321183]
[1728008249233,7.20638,2377.4,2376.8,5.53321183]
[1728008249627,7.20638,2377.4,2376.8,5.53311183]
[1728008249827,7.20638,2377.4,2376.9,0.64981487]
[1728008250320,3.0,2377.5,2377.0,4.98157]
[1728008250630,8.41203,2377.6,2377.0,4.98157]
[1728008251046,4.20615,2377.5,2377.0,4.98157]
[1728008251358,5.00706,2377.8,2377.1,0.64727072]
[1728008251580,8.41065,2378.0,2377.2,8.9661905]
[1728008251780,4.20531,2378.0,2377.5,0.7746]
[1728008251942,4.20495,2378.2,2377.5,0.85871214]
[1728008252244,4.20495,2378.2,2377.6,4.703886]
[1728008252645,8.40994,2378.2,2377.6,4.703886]
[1728008252850,4.20523,2378.0,2377.6,0.498086]
[1728008253059,4.20523,2378.0,2377.5,0.7746]
[1728008253266,4.20571,2377.8,2377.2,4.20653]
[1728008253443,4.20571,2377.8,2377.3,0.7746]
[1728008254778,3.0,2377.9,2377.3,5.06515035]
[1728008254934,3.0,2377.9,2377.4,0.50651503]
[1728008255138,7.20541,2377.9,2377.4,4.79690429]
[1728008255339,7.20541,2377.9,2377.4,0.59063429]
[1728008256278,7.20541,2377.9,2377.4,0.50651503]
[1728008257581,7.20541,2377.9,2377.4,0.59063155]
[1728008257878,3.0,2377.9,2377.4,0.50651503]
[1728008258071,4.20557,2377.8,2377.4,0.50651503]
[1728008258575,4.20557,2377.8,2377.3,4.98091]
[1728008258576,4.20588,2377.7,2377.3,0.7746]
[1728008258747,3.0,2377.9,2377.3,0.7746]
[1728008258969,3.0,2377.9,2377.4,4.29028715]
[1728008259285,3.0,2377.9,2377.4,4.20617]
[1728008259492,3.0,2377.9,2377.4,1.31722005]
[1728008259791,4.20557,2377.8,2377.3,4.98091]
[1728008260357,4.2058,2377.7,2377.3,0.7746]
[1728008262389,4.20557,2377.8,2377.3,4.98102]
[1728008262596,3.0,2377.9,2377.4,4.29034265]
[1728008262886,3.0,2377.9,2377.4,5.61599097]
[1728008263267,7.2054,2377.9,2377.4,5.61599097]
[1728008263666,7.2054,2377.9,2377.4,1.40977097]
[1728008264271,4.20558,2377.8,2377.4,1.40977097]
[1728008264494,8.41129,2377.8,2377.3,0.7746]
[1728008264676,8.1415,2378.2,2377.3,0.7746]
[1728008264677,4.20609,2377.6,2377.3,0.7746]
[1728008264882,4.20619,2377.5,2377.3,0.7746]
[1728008265567,4.20609,2377.6,2377.3,0.7746]
[1728008266582,4.20579,2377.7,2377.3,0.7746]
[1728008267093,5.03718,2377.8,2377.3,0.7746]
[1728008267094,4.20568,2377.8,2377.3,0.7746]
[1728008267459,8.41139,2377.8,2377.3,0.7746]
[1728008267762,4.20568,2377.8,2377.3,5.99235863]
[1728008268188,4.20568,2377.8,2377.3,5.99225863]
[1728008268369,4.20568,2377.8,2377.3,5.90813625]
[1728008268564,7.20542,2377.9,2377.3,10.11446625]
[1728008268766,7.20542,2377.9,2377.3,5.90811625]
[1728008268981,7.20542,2377.9,2377.4,0.08411923]
[1728008269494,4.20557,2377.8,2377.4,0.08411923]
[1728008270281,3.0,2377.9,2377.4,0.68334278]
[1728008270495,7.31,2378.2,2377.8,4.20555]
[1728008270702,4.20455,2378.4,2377.9,0.08409955]
[1728008270991,0.7674,2378.8,2377.8,0.8054]
[1728008271210,4.20539,2377.9,2377.8,0.8054]
[1728008271488,4.20539,2377.9,2377.5,0.8054]
[1728008271691,4.20558,2377.8,2377.5,0.8054]
[1728008275500,8.4106,2378.0,2377.5,0.8054]
[1728008275660,4.20541,2377.9,2377.5,0.8054]
[1728008277094,4.20541,2377.9,2377.3,0.8054]
[1728008277304,4.20584,2377.7,2377.3,0.8054]
[1728008278183,4.97301,2377.8,2377.3,0.8054]
[1728008278374,3.0,2377.7,2377.3,5.01168]
[1728008278568,3.0,2377.8,2377.3,9.21802]
[1728008278782,3.0,2377.8,2377.3,5.01168]
[1728008279361,3.0,2377.8,2377.4,4.20626]
[1728008279762,3.0,2377.8,2377.3,5.01168]
[1728008280006,3.0,2377.8,2377.3,9.21801]
[1728008280362,3.0,2377.8,2377.3,6.42008196]
[1728008280701,7.20557,2377.8,2377.3,6.42008196]
[1728008280873,7.20557,2377.8,2377.3,5.01168]
[1728008282766,4.20642,2377.4,2377.1,0.88088905]
[1728008283077,4.2068,2377.1,2376.8,0.8054]
[1728008283290,4.2068,2377.1,2376.5,1.77043534]
[1728008283604,4.2068,2377.1,2376.5,10.18595534]
[1728008283767,3.0,2377.2,2376.7,4.9637]
[1728008284313,4.20654,2377.3,2376.7,0.7562]
[1728008284314,4.20692,2377.1,2376.7,0.7562]
[1728008284523,4.2069,2377.1,2376.7,0.7562]
[1728008285025,3.0,2377.2,2376.7,0.84034159]
[1728008285329,3.0,2377.2,2376.7,1.76145091]
[1728008285477,4.20682,2377.1,2376.7,1.76145091]
[1728008286178,4.20682,2377.1,2376.7,0.7562]
[1728008287019,4.20717,2376.9,2376.7,0.7562]
[1728008287319,4.20717,2376.9,2376.5,0.7562]
[1728008287821,5.02112,2377.1,2376.5,0.7562]
[1728008287996,5.02112,2377.1,2376.5,4.96406]
[1728008287997,8.41376,2377.1,2376.5,4.96406]
[1728008288319,4.20682,2377.1,2376.5,4.96406]
[1728008289105,4.20709,2377.0,2376.5,4.96406]
[1728008289327,4.20709,2377.0,2376.5,6.50001031]
[1728008289810,4.20709,2377.0,2376.5,2.29215031]
[1728008290136,4.20737,2376.8,2376.5,0.7562]
[1728008290493,4.20699,2377.0,2376.5,0.7562]
[1728008290690,4.20717,2376.9,2376.5,0.7562]
[1728008290893,4.20699,2377.0,2376.5,0.7562]
[1728008291218,8.41407,2377.0,2376.5,0.7562]
[1728008291539,4.20699,2377.0,2376.5,0.7562]
[1728008292035,4.20699,2377.0,2376.5,4.96405]
[1728008292338,4.20699,2377.0,2376.5,5.88967792]
[1728008294344,7.20637,2377.4,2376.6,0.7562]
[1728008294637,7.20637,2377.4,2377.0,0.7562]
[1728008297410,4.20646,2377.3,2377.0,0.7562]
[1728008298145,11.41275,2377.4,2377.0,0.7562]
[1728008298707,7.20637,2377.4,2377.0,0.7562]
[1728008298908,11.41275,2377.4,2377.0,0.7562]
[1728008300208,7.20637,2377.4,2377.0,0.7562]
[1728008300447,11.41274,2377.4,2377.0,0.7562]
[1728008300810,12.22704,2377.4,2377.0,0.7562]
[1728008301150,4.2065,2377.3,2377.0,0.7562]
[1728008301851,4.2068,2377.1,2377.0,0.7562]
[1728008302019,4.2068,2377.1,2376.6,0.7562]
[1728008302216,3.8143,2377.4,2376.6,0.7562]
[1728008302217,3.0,2377.0,2376.6,0.7562]
[1728008302423,7.20705,2377.0,2376.6,0.7562]
[1728008302618,7.20688,2377.1,2376.6,0.7562]
[1728008302818,3.0,2377.1,2376.6,4.96387]
[1728008303046,3.0,2377.1,2376.6,0.7562]
[1728008303256,7.20685,2377.1,2376.6,0.7562]
[1728008303610,3.0,2377.1,2376.6,0.84034219]
[1728008303829,3.0,2377.1,2376.6,5.95121446]
[1728008304234,3.0,2377.1,2376.6,1.65952227]
[1728008304428,7.2069,2377.1,2376.6,0.84034224]
[1728008304713,7.2069,2377.1,2376.6,0.84034216]
[1728008304913,7.2069,2377.1,2376.6,0.84034224]
[1728008305156,4.20711,2377.0,2376.6,0.7562]
[1728008305360,4.20716,2376.9,2376.6,0.7562]
[1728008305720,4.20727,2376.9,2376.6,0.7562]
[1728008305946,4.20711,2377.0,2376.6,0.7562]
[1728008306259,8.4142,2377.0,2376.6,0.7562]
[1728008306462,4.20709,2377.0,2376.6,0.7562]
[1728008306757,4.20719,2376.9,2376.6,0.7562]
[1728008308259,4.20736,2376.8,2376.6,0.7562]
[1728008308621,4.20763,2376.7,2376.4,0.7562]
[1728008308816,4.20786,2376.5,2376.4,0.7562]
[1728008309163,4.20786,2376.5,2376.2,0.7562]
[1728008311734,5.02133,2377.0,2376.2,0.7562]
[1728008311735,3.0,2376.8,2376.3,8.1931705]
[1728008311964,3.0,2376.8,2376.5,0.7562]
[1728008312274,7.20747,2376.8,2376.5,0.7562]
[1728008312570,4.20752,2376.7,2376.5,0.7562]
[1728008312777,3.0,2376.8,2376.5,0.7562]
[1728008312978,8.41458,2376.9,2376.5,5.21545255]
[1728008312979,3.0,2376.9,2376.5,5.21545255]
[1728008313181,7.31,2377.2,2376.7,8.1925105]
[1728008313350,5.02085,2377.3,2376.9,0.7562]
[1728008313351,4.20655,2377.3,2376.9,0.7562]
[1728008313676,4.20655,2377.3,2376.9,3.9851205]
[1728008313869,4.2072,2376.9,2376.5,1.25763205]
[1728008314034,4.2076,2376.7,2376.5,0.7835]
[1728008314238,4.20769,2376.6,2376.3,0.7835]
[1728008314956,4.2076,2376.7,2376.3,0.7835]
[1728008315330,8.41523,2376.7,2376.3,0.7835]
[1728008315456,4.2076,2376.7,2376.3,0.7835]
[1728008315639,3.0,2376.9,2376.5,3.9851205]
[1728008315841,3.0,2376.9,2376.6,0.7835]
[1728008316036,3.0,2377.1,2376.6,0.7835]
[1728008316301,4.20675,2377.2,2376.7,0.47686205]
[1728008316578,8.41355,2377.2,2376.7,0.47686205]
[1728008316742,3.0,2377.1,2376.6,0.7835]
[1728008317245,0.7913,2377.3,2376.6,0.7835]
[1728008317658,4.20728,2376.9,2376.4,4.99154]
[1728008317859,4.2071,2377.0,2376.5,4.8527679]
[1728008318061,4.99802,2377.2,2376.5,5.67468529]
[1728008318246,3.0,2377.1,2376.7,0.7835]
[1728008318456,4.20674,2377.2,2376.7,4.7686205]
[1728008318677,4.20696,2377.1,2376.7,0.7835]
[1728008319563,4.20674,2377.2,2376.7,0.7835]
[1728008319769,4.20698,2377.0,2376.7,0.7835]
[1728008320301,8.41405,2377.0,2376.7,0.7835]
[1728008320998,4.20698,2377.0,2376.7,0.7835]
[1728008321293,3.0,2377.0,2376.7,0.7835]
[1728008321460,3.0,2377.1,2376.7,2.110317]
[1728008322092,7.20686,2377.1,2376.7,2.110317]
[1728008322398,3.0,2377.1,2376.7,0.7835]
[1728008322962,7.20682,2377.1,2376.7,0.7835]
[1728008323587,4.20698,2377.0,2376.7,0.7835]
[1728008324060,8.41413,2377.0,2376.7,0.7835]
[1728008324265,4.2072,2376.9,2376.7,0.7835]
[1728008325179,4.20698,2377.0,2376.7,0.7835]
[1728008325392,4.20719,2376.9,2376.7,0.7835]
[1728008326113,0.7913,2377.8,2376.8,0.7835]
[1728008326406,4.20628,2377.4,2377.0,0.7835]
[1728008326625,4.20656,2377.3,2377.0,0.7835]
[1728008326768,4.20628,2377.4,2377.0,0.7835]
[1728008327469,4.20647,2377.3,2377.0,0.7835]
[1728008327808,9.20401,2377.4,2377.0,0.7835]
[1728008328022,0.7913,2377.4,2376.8,0.7835]
[1728008328225,4.20673,2377.2,2376.8,0.7835]
[1728008328595,8.41348,2377.2,2376.8,0.7835]
[1728008328889,3.0,2377.3,2376.8,4.99072]
[1728008329091,3.0,2377.3,2376.9,0.50748633]
[1728008329303,3.0,2377.3,2376.9,4.71461633]
[1728008329994,4.20566,2377.8,2377.2,0.7754]
[1728008330451,0.8305,2377.9,2376.9,1.38969745]
[1728008330452,4.20628,2377.4,2376.9,1.38969745]
[1728008330624,4.20628,2377.4,2377.0,0.7754]
[1728008330959,4.207,2377.0,2376.6,1.65761112]
[1728008331143,8.4141,2377.0,2376.6,0.7754]
[1728008331453,8.4141,2377.0,2376.4,5.53118669]
[1728008331454,4.20735,2376.8,2376.4,1.65761112]
[1728008331606,0.8305,2377.1,2376.4,1.65761112]
[1728008331607,8.03732,2377.1,2376.5,4.20772]
[1728008331806,8.03732,2377.1,2376.5,5.74588383]
[1728008332218,0.8305,2377.4,2377.0,4.20698]
[1728008332417,3.0,2377.3,2376.9,0.7754]
[1728008333022,7.20655,2377.3,2376.9,0.7754]
[1728008333953,3.0,2377.3,2376.9,0.7754]
[1728008334446,3.0,2377.3,2376.9,5.87920405]
[1728008334638,3.0,2377.5,2376.9,5.87920405]
[1728008334836,3.0,2377.5,2376.9,1.75630947]
[1728008335144,7.20612,2377.5,2377.0,4.20697]
[1728008335451,7.20612,2377.5,2376.9,5.96342952]
[1728008335650,7.20612,2377.5,2376.9,5.96342677]
[1728008336144,7.20612,2377.5,2376.9,1.67217405]
[1728008336471,7.20612,2377.5,2376.9,5.06659553]
[1728008336811,7.20612,2377.5,2376.9,0.85953553]
[1728008337126,3.0,2377.3,2376.9,0.8595313]
[1728008337336,3.0,2377.3,2376.9,0.85953303]
[1728008337553,4.20632,2377.4,2376.9,1.76472204]
[1728008338426,4.20612,2377.5,2377.0,0.08412991]
[1728008338751,4.20612,2377.5,2377.0,4.20689]
[1728008339447,4.20612,2377.5,2376.9,5.88763735]
[1728008339448,4.20627,2377.4,2376.9,5.88763735]
[1728008340563,8.41234,2377.5,2376.9,5.97176942]
[1728008340721,8.41234,2377.5,2377.0,0.99568899]
[1728008341050,4.20646,2377.3,2376.9,1.68058735]
[1728008341251,4.2069,2377.1,2376.7,1.65761112]
[1728008341454,4.2069,2377.1,2376.7,0.7754]
[1728008343219,8.41382,2377.1,2376.7,0.7754]
[1728008343432,8.41384,2377.1,2376.7,0.7754]
[1728008343648,4.20703,2377.0,2376.7,0.7754]
[1728008343964,4.20703,2377.0,2376.2,1.76442225]
[1728008343965,4.20753,2376.7,2376.2,1.68741112]
[1728008344320,9.22029,2376.9,2376.2,5.89566112]
[1728008344550,4.20733,2376.8,2376.2,5.89566112]
[1728008345363,4.20733,2376.8,2376.2,5.97982065]
[1728008346264,4.20733,2376.8,2376.2,7.45709053]
[1728008347414,4.20756,2376.7,2376.2,6.57487941]
[1728008348055,4.20709,2377.0,2376.3,3.9851205]
[1728008348364,10.31,2377.2,2376.9,4.20714]
[1728008348529,16.49599,2377.6,2376.8,5.06946793]
[1728008348530,3.0,2377.5,2376.8,5.06946793]
[1728008348729,3.0,2377.3,2376.8,10.18215677]
[1728008348945,3.0,2377.3,2376.8,5.91786884]
[1728008349164,3.0,2377.3,2376.8,10.12509884]
[1728008349321,3.0,2377.3,2376.8,5.91786884]
[1728008349972,11.51543,2377.9,2376.8,5.91786884]
[1728008349973,4.20675,2377.2,2376.8,0.8052]
[1728008350266,3.0,2377.1,2376.8,0.8052]
[1728008350756,4.20683,2377.1,2376.8,0.8052]
[1728008351447,3.0,2377.2,2376.8,0.8052]
[1728008351841,7.20673,2377.2,2376.8,0.8052]
[1728008352157,8.41385,2377.1,2376.6,0.8052]
[1728008352661,4.20691,2377.1,2376.6,9.08214685]
[1728008352866,4.20691,2377.1,2376.6,8.9980005]
[1728008353085,4.20691,2377.1,2376.6,10.53914933]
[1728008353949,4.20691,2377.1,2376.6,14.74672933]
[1728008354349,4.20691,2377.1,2376.6,10.53904933]
[1728008355084,4.20691,2377.1,2376.6,10.53913933]
[1728008355385,3.0,2377.4,2376.9,5.01229]
[1728008355600,3.0,2377.4,2377.0,0.89974105]
[1728008355758,3.0,2377.4,2377.0,4.20698]
[1728008356790,3.0,2377.4,2376.9,0.8052]
[1728008357285,3.0,2377.4,2376.9,5.01232]
[1728008357469,3.0,2377.4,2376.9,0.8052]
[1728008357673,7.2063,2377.4,2376.9,0.8052]
[1728008357994,4.2068,2377.1,2376.7,0.8052]
[1728008358285,3.0,2377.2,2376.8,8.27646802]
[1728008358486,3.0,2377.2,2376.9,0.08413465]
[1728008358984,3.0,2377.2,2376.8,8.1923305]
[1728008359284,3.0,2377.3,2376.9,0.92292345]
[1728008359658,3.0,2377.4,2377.0,0.8052]
[1728008359860,7.20629,2377.4,2377.0,0.8052]
[1728008362773,4.20657,2377.3,2377.0,0.8052]
[1728008362971,4.20657,2377.3,2376.9,0.08413467]
[1728008363294,4.20657,2377.3,2376.8,0.8052]
[1728008363295,4.20672,2377.2,2376.8,0.8052]
[1728008364391,4.20657,2377.3,2376.8,0.8052]
[1728008364792,8.41311,2377.3,2376.8,0.8052]
[1728008365431,4.20654,2377.3,2376.8,0.8052]
[1728008365611,8.41313,2377.3,2376.8,0.8052]
[1728008365775,4.20692,2377.1,2376.8,0.8052]
[1728008366220,4.20692,2377.1,2376.6,1.68741112]
[1728008366377,4.20699,2377.0,2376.6,1.68741112]
[1728008367677,4.20725,2376.9,2376.6,0.88221112]
[1728008368009,4.20699,2377.0,2376.4,9.88042162]
[1728008368186,4.20699,2377.0,2376.4,14.08833162]
[1728008368395,4.20699,2377.0,2376.4,9.88042162]
[1728008368593,4.20716,2376.9,2376.4,9.88042162]
[1728008368774,5.01305,2376.8,2376.4,1.68741112]
[1728008369117,5.01305,2376.8,2376.3,0.88221112]
[1728008369118,4.20761,2376.7,2376.3,0.88221112]
[1728008369293,4.20761,2376.7,2376.2,9.88077162]
[1728008370224,5.01305,2376.8,2376.3,4.20818]
[1728008370375,5.01305,2376.8,2376.3,5.09039112]
[1728008370571,5.01305,2376.8,2376.3,0.88221112]
[1728008371625,5.01305,2376.8,2376.3,5.09039112]
[1728008371839,3.0,2376.9,2376.4,12.4010405]
[1728008372061,3.0,2376.9,2376.5,0.8052]
[1728008372337,3.0,2376.9,2376.5,5.01305]
[1728008372539,3.0,2376.9,2376.5,0.8052]
[1728008372916,4.20751,2376.7,2376.3,1.68741112]
[1728008374742,4.20751,2376.7,2376.3,0.8052]
[1728008377207,4.20751,2376.7,2376.3,1.68741112]
[1728008377603,4.20751,2376.7,2376.3,0.8052]
[1728008379220,3.7703,2376.6,2376.1,0.99978742]
[1728008379448,3.7703,2376.6,2376.2,4.20839]
[1728008379650,3.7703,2376.6,2376.1,0.1175763]
[1728008379651,3.7703,2376.6,2376.1,8.3111068]
[1728008379955,3.7703,2376.6,2376.1,12.5195868]
[1728008380243,3.7703,2376.6,2376.1,12.5195668]
[1728008380407,7.97801,2376.6,2376.1,8.3111068]
[1728008382044,7.97803,2376.6,2376.1,8.3111068]
[1728008382604,3.7703,2376.6,2376.1,4.3259863]
[1728008383006,3.7703,2376.6,2376.1,8.3111068]
[1728008383453,3.7703,2376.6,2376.2,4.20838]
[1728008383806,0.7703,2376.6,2376.2,4.20838]
[1728008384020,0.7703,2376.6,2376.1,12.5195268]
[1728008384237,0.7703,2376.6,2376.1,9.73377059]
[1728008384446,0.7703,2376.6,2376.1,5.74865009]
[1728008385046,4.97801,2376.6,2376.1,5.74865009]
[1728008385255,4.20789,2376.5,2376.1,0.1175763]
[1728008386917,0.7703,2376.4,2376.1,0.1175763]
[1728008387659,3.7703,2376.4,2376.1,0.1175763]
[1728008388952,7.97838,2376.4,2376.1,0.1175763]
[1728008389155,4.20832,2376.3,2376.1,0.1175763]
[1728008389361,8.41665,2376.3,2376.1,0.1175763]
[1728008389858,4.20832,2376.3,2376.1,0.1175763]
[1728008390263,8.41667,2376.3,2376.1,0.1175763]
[1728008390432,4.20832,2376.3,2376.1,0.1175763]
[1728008391950,4.20839,2376.2,2376.1,0.1175763]
[1728008392146,4.20832,2376.3,2376.1,0.1175763]
[1728008397375,7.97836,2376.4,2376.1,0.1175763]
[1728008400354,4.20822,2376.3,2376.1,0.1175763]
[1728008402505,0.7503,2376.6,2376.1,0.1175763]
[1728008402716,4.20839,2376.2,2376.1,0.1175763]
[1728008403020,4.20806,2376.4,2376.1,0.1175763]
[1728008403184,8.41626,2376.4,2376.1,0.1175763]
[1728008403714,4.20709,2377.0,2376.2,5.00175]
[1728008403897,0.782,2377.8,2376.9,1.84038679]
[1728008404223,4.20583,2377.7,2377.1,1.84038679]
[1728008404375,4.20611,2377.5,2376.9,6.13154021]
[1728008404575,4.20611,2377.5,2376.9,7.24477623]
[1728008404765,8.41231,2377.5,2376.9,7.24477623]
[1728008404969,4.20676,2377.2,2376.8,0.7934]
[1728008405213,4.207,2377.0,2376.5,5.00113]
[1728008405371,8.41412,2377.0,2376.5,0.7934]
[1728008405568,4.207,2377.0,2376.5,0.7934]
[1728008405782,4.20718,2376.9,2376.5,0.7934]
[1728008406420,8.41409,2377.0,2376.5,0.7934]
[1728008406572,4.20718,2376.9,2376.5,0.7934]
[1728008407189,4.20718,2376.9,2376.3,8.41619]
[1728008407190,0.782,2376.8,2376.3,5.00149]
[1728008407815,0.782,2376.8,2376.4,4.20803]
[1728008408018,0.782,2376.8,2376.3,9.2096]
[1728008408219,0.782,2376.8,2376.3,9.20961]
[1728008408793,0.782,2376.8,2376.4,4.20804]
[1728008408992,0.782,2376.8,2376.3,5.00149]
[1728008408993,4.20752,2376.7,2376.3,0.7934]
[1728008409332,4.20769,2376.6,2376.1,6.00159742]
[1728008409503,4.20769,2376.6,2376.2,0.42407179]
[1728008409677,4.20769,2376.6,2376.1,5.1193863]
[1728008410010,4.20769,2376.6,2376.1,0.9109763]
[1728008410211,4.20806,2376.4,2376.1,0.1175763]
[1728008410414,7.20839,2376.2,2376.1,0.1175763]
[1728008412682,3.0,2376.3,2376.1,0.1175763]
[1728008412905,7.20828,2376.3,2376.1,0.1175763]
[1728008413337,3.0,2376.3,2376.1,0.1175763]
[1728008413709,7.20822,2376.3,2376.1,0.1175763]
[1728008413932,3.0,2376.3,2376.1,0.1175763]
[1728008414430,7.20825,2376.3,2376.1,0.1175763]
[1728008414810,7.99039,2376.2,2376.1,0.1175763]
[1728008434507,7.20839,2376.2,2376.1,0.1175763]
[1728008439666,8.03869,2376.2,2376.1,0.1175763]
[1728008440468,24.74967614,2376.2,2376.1,0.1175763]
[1728008440883,21.821814,2376.2,2376.1,0.1175763]
[1728008441083,8.03869,2376.2,2376.1,0.1175763]
[1728008441296,7.20839,2376.2,2376.1,0.1175763]
[1728008444686,8.03869,2376.2,2376.1,0.1175763]
[1728008460120,8.58869,2376.2,2376.1,0.1175763]
[1728008461778,8.03869,2376.2,2376.1,0.1175763]
[1728008461995,7.20839,2376.2,2376.1,0.1175763]
[1728008462305,8.01829,2376.2,2376.1,0.1175763]
[1728008462946,7.20839,2376.2,2376.1,0.1175763]
[1728008463235,28.835216,2376.2,2376.1,0.1175763]
[1728008463397,29.385216,2376.2,2376.1,0.1175763]
[1728008464323,15.76689,2376.2,2376.1,0.1175763]
[1728008465702,8.01829,2376.2,2376.1,0.1175763]
[1728008465849,7.20839,2376.2,2376.1,0.1175763]
[1728008466021,4.20839,2376.2,2376.1,0.1175763]
[1728008467157,4.20839,2376.2,2376.1,0.9442763]
[1728008467312,7.20839,2376.2,2376.1,0.9442763]
[1728008468828,7.20839,2376.2,2376.1,0.1175763]
[1728008475146,8.57509,2376.2,2376.1,0.1175763]
[1728008476960,7.20839,2376.2,2376.1,0.1175763]
[1728008478235,8.57509,2376.2,2376.1,0.1175763]
[1728008479363,31.894224,2376.2,2376.1,0.1175763]
[1728008479739,32.79372,2376.2,2376.1,0.1175763]
[1728008480562,23.598341,2376.2,2376.1,0.1175763]
[1728008481348,16.035382,2376.2,2376.1,0.1175763]
[1728008481660,15.135886,2376.2,2376.1,0.1175763]
[1728008483325,8.02509,2376.2,2376.1,0.1175763]
[1728008483527,10.974478,2376.2,2376.1,0.1175763]
[1728008485343,11.524478,2376.2,2376.1,0.1175763]
[1728008488548,26.909135,2376.2,2376.1,0.1175763]
[1728008488875,26.783381,2376.2,2376.1,0.1175763]
[1728008489651,21.94275,2376.2,2376.1,0.1175763]
[1728008489870,8.657886,2376.2,2376.1,0.1175763]
[1728008490252,7.20839,2376.2,2376.1,0.1175763]
[1728008491782,7.75839,2376.2,2376.1,0.1175763]
[1728008503791,7.20839,2376.2,2376.1,0.1175763]
[1728008504596,7.75839,2376.2,2376.1,0.1175763]
[1728008506959,7.75839,2376.2,2376.1,0.9074763]
[1728008507969,7.20839,2376.2,2376.1,0.9074763]
[1728008510606,4.20839,2376.2,2376.1,0.9074763]
[1728008510813,4.20822,2376.3,2376.1,0.9074763]
[1728008511105,4.20806,2376.4,2376.1,0.9074763]
[1728008511313,8.41623,2376.4,2376.1,0.9074763]
[1728008511473,4.20806,2376.4,2376.1,0.9074763]
[1728008511815,4.20839,2376.2,2376.1,0.9074763]
[1728008512604,3.0,2376.3,2376.1,0.9074763]
[1728008512805,4.20778,2376.6,2376.1,0.9074763]
[1728008512806,3.0,2376.5,2376.1,0.9074763]
[1728008512978,11.51669,2377.2,2376.3,0.8331]
[1728008513186,4.20804,2376.4,2376.3,0.8331]
[1728008513875,4.20839,2376.2,2376.1,0.9506763]
[1728008514872,7.20839,2376.2,2376.1,0.9506763]
[1728008518713,7.20839,2376.2,2376.1,0.1175763]
[1728008520610,3.0,2376.2,2376.1,0.9506763]
[1728008520812,7.20839,2376.2,2376.1,0.9506763]
[1728008522579,7.20839,2376.2,2376.1,0.1175763]
[1728008524082,7.20839,2376.2,2376.1,0.9381763]
[1728008525417,4.20807,2376.4,2376.1,0.9381763]
[1728008526616,4.20839,2376.2,2376.1,0.9381763]
[1728008531581,4.20823,2376.3,2376.1,0.9381763]
[1728008533313,4.20839,2376.2,2376.1,0.9381763]
[1728008534717,4.20839,2376.2,2376.1,0.1175763]
[1728008534917,7.20839,2376.2,2376.1,0.1175763]
[1728008537935,7.64789319,2376.2,2376.1,0.1175763]
[1728008538105,8.02159,2376.2,2376.1,0.1175763]
[1728008538434,7.20839,2376.2,2376.1,0.1175763]
[1728008542697,23.942994,2376.2,2376.1,0.1175763]
[1728008542898,12.377993,2376.2,2376.1,0.1175763]
[1728008543119,12.178598,2376.2,2376.1,0.1175763]
[1728008543348,8.02859,2376.2,2376.1,0.1175763]
[1728008543627,10.045941,2376.2,2376.1,0.1175763]
[1728008543829,8.02859,2376.2,2376.1,0.1175763]
[1728008544039,10.045941,2376.2,2376.1,0.1175763]
[1728008544994,10.595941,2376.2,2376.1,0.1175763]
[1728008549242,10.72686702,2376.2,2376.1,0.1175763]
[1728008550309,4.21034,2375.1,2375.0,0.00252842]
[1728008550534,7.76034,2375.1,2375.0,0.00252842]
[1728008550746,7.21034,2375.1,2375.0,0.00252842]